Cogmind - Beta 17 @@@ ROGUE MODE // 2026.06.23 @ 15:12:31 Player: Lolterzard Result: Self-destructed Performance ------------- Evolutions (3) 1500 Regions Visited (6) 1200 Robots Destroyed (107) 535 Value Destroyed (2976) 2976 Prototype IDs (25) 500 Alien Tech Used (0) 0 Bonus (300) 300 TOTAL SCORE: 7011 Bonus ------- Aligned with FarCom 300 Cogmind --------- Core Integrity 108/700 Matter 58/300 Energy 100/100 System Corruption 3% Temperature Cool (2) Movement Core (700) Ox13 Location -7/Factory Parts ------- > --- POWER (2) -------- (None) > --- PROPULSION (4) --- (None) > --- UTILITY (5) ------ High-capacity Storage Unit > --- WEAPON (2) ------- (None) > --- INVENTORY (20) --- Improved Heat Sink Small Matter Pod (0) Compact Matter Pod (0) Weapon Shielding Light Armor Plating Hardened Heavy Armor Plating Improved Medium Armor Plating Improved Shield Generator Hacking Suite Supersonic Drone Bay (1/1) Heavy Assault Rifle Heavy Assault Rifle Heavy Assault Rifle Heavy Assault Rifle Flak Gun Rocket Launcher Heavy Rocket Launcher Peak State ------------ > --- POWER ------------ Improved Deuterium Engine Heavy Deuterium Engine > --- PROPULSION ------- Armored Treads Armored Treads Armored Treads > --- UTILITY ---------- Improved Heat Sink High-capacity Storage Unit Experimental Sensor Array Improved Medium Armor Plating High-powered Tractor Beam > --- WEAPON ----------- Flak Cannon Flak Cannon > --- INVENTORY -------- Ion Engine Improved Ion Engine Improved Heat Sink Small Matter Pod Seismic Detector Transport Network Coupler Light Armor Plating Hardened Heavy Armor Plating Hacking Suite Supersonic Drone Bay Heavy Assault Rifle Heavy Assault Rifle Heavy Assault Rifle Heavy Assault Rifle Flak Cannon Flak Cannon Advanced Assault Cannon Rocket Launcher Mini Grenade Launcher [Rating: 49] Favorites ----------- Power Ion Engine Engine Ion Engine Propulsion Armored Treads Treads Armored Treads Wheel Wheel Hover Unit Hover Unit Utility High-capacity Storage Unit Device High-powered Tractor Beam Storage High-capacity Storage Unit Protection Light Armor Plating Weapon Light Assault Rifle Ballistic Gun Light Assault Rifle Ballistic Cannon Flak Cannon Launcher Grenade Launcher Build | -11 -10 -10 -10 -9 -8 -7 ------- Run | Yrd Mat Min Exi Min Mat Fac Slots Evolved 6 | . . . . . 4 2 Power 1 | . . . . . 1 . Propulsion 2 | . . . . . 2 . Utility 3 | . . . . . 1 2 Weapon . | . . . . . . . Parts Attached 72 | 7 5 7 1 5 28 19 Power 10 | 1 . 2 . . 3 4 Engine 10 | 1 . 2 . . 3 4 Core . | . . . . . . . Reactor . | . . . . . . . Propulsion 24 | 2 2 2 . 2 15 1 Treads 14 | 2 . . . . 11 1 Leg . | . . . . . . . Wheel 6 | . . . . 2 4 . Hover 4 | . 2 2 . . . . Flight . | . . . . . . . Utility 19 | 2 1 . 1 2 4 9 Device 9 | 1 1 . . 1 1 5 Storage 2 | 1 . . 1 . . . Processor . | . . . . . . . Hackware . | . . . . . . . Protection 8 | . . . . 1 3 4 Artifact . | . . . . . . . Weapon 19 | 2 2 3 . 1 6 5 Energy Gun . | . . . . . . . Energy Cannon . | . . . . . . . Ballistic Gun 11 | 2 2 2 . . 5 . Ballistic Cannon 5 | . . . . . . 5 Launcher 3 | . . 1 . 1 1 . Special Weapon . | . . . . . . . Impact Weapon . | . . . . . . . Slashing Weapon . | . . . . . . . Piercing Weapon . | . . . . . . . Special Melee Weapon . | . . . . . . . Unidentified Prototypes 2 | . . . . . . 2 Parts Lost 34 | . 4 2 . 1 8 19 Power 4 | . . . . . 1 3 Propulsion 12 | . 2 2 . 1 3 4 Utility 11 | . 1 . . . 3 7 Weapon 7 | . 1 . . . 1 5 Highest Loss Streak 6 | . 2 2 . 1 3 6 To Critical Strikes . | . . . . . . . Average Backups 13 | 3 7 7 6 8 17 18 Power . | . 1 . . . 1 . Propulsion 1 | 1 2 3 2 2 . . Utility 6 | . 2 2 3 5 9 8 Weapon 5 | . 1 1 1 1 6 9 Tool/Special . | . . . . . . . Unused Backups 22 | . 5 1 . . 4 12 Power 2 | . 1 . . . 1 . Propulsion 4 | . 2 . . . 2 . Utility 10 | . 1 . . . . 9 Weapon 6 | . 1 1 . . 1 3 Tool/Special . | . . . . . . . Average Slot Usage (%) 92 | . 95 98 100 90 95 87 Engine 13 | . 14 14 14 14 17 10 Treads 17 | . 22 . . . 24 24 Wheel 2 | . . . . 7 9 . Hover 5 | . 3 26 28 12 . . Device 10 | . 11 14 14 2 1 17 Storage 10 | . 14 14 14 14 9 7 Protection 9 | . . . . 11 15 11 Ballistic Gun 15 | . 28 24 28 27 17 2 Ballistic Cannon 5 | . . . . . . 12 Peak Build Rating 49 | 7 8 8 9 16 27 49 Average Rating 22 | 5 6 7 8 10 21 37 On Entrance 10 | . 7 8 8 9 12 27 Avg Prop Armor Cover (%) 7 | 24 . . . . 6 6 Naked Turns . | . . . . . . . Heaviest Build 84 | 12 13 15 48 50 65 84 Greatest Support 80 | 40 40 12 12 20 80 80 Greatest Overweight (x) 21 | 3 3 1 3 8 21 17 Average Overweight (x) 1 | . . . 1 3 . . Largest Inventory Capacity 20 | 8 8 8 20 20 20 20 Average Capacity 17 | 7 8 8 10 20 20 20 Most Carried 20 | 5 8 8 8 12 20 20 Average Carried 14 | 3 7 7 6 8 17 19 Final Capacity 20 | 8 8 8 20 20 20 20 Final Carried 20 | 5 8 6 8 12 20 18 Class Distribution -------------------- 41% | Scavenger-Mutant 35% | Mutant 16% | Skirmisher 6% | Scavenger-Skirmisher Dominant Class ---------------- Mutant | -10/Materials Scavenger-Mutant | -10/Mines Scavenger-Mutant | -10/Exiles Scavenger-Mutant | -9/Mines Scavenger-Mutant | -8/Materials Mutant | -7/Factory Resources | -11 -10 -10 -10 -9 -8 -7 ----------- Run | Yrd Mat Min Exi Min Mat Fac Matter Collected 2920 | 302 374 157 . 137 728 1222 Remotely 1243 | . . . . . 199 1044 Salvage Created 3418 | 129 678 118 . 273 936 1284 Parts 216 | 7 34 11 . 15 76 73 Haulers Intercepted 5 | . 2 . . . 1 2 Recyclers Shooed 3 | . . . . . . 3 Parts Field Recycled . | . . . . . . . Retrieved Matter . | . . . . . . . Parts Self-Destructed . | . . . . . . . Prevented . | . . . . . . . Parts Restored . | . . . . . . . Kills | -11 -10 -10 -10 -9 -8 -7 ------- Run | Yrd Mat Min Exi Min Mat Fac Combat Hostiles Destroyed 71 | . 14 8 . 3 19 27 Melee 2 | . . . . . . 2 Guns 41 | . 14 2 . 2 19 4 Cannons 19 | . . . . . . 19 AOE 9 | . . 6 . 1 . 2 Classes Destroyed 12 | 2 5 . . 1 1 3 Worker 10 | . 1 . . 1 4 4 Builder 2 | . . . . . . 2 Tunneler 4 | 2 . . . 1 . 1 Hauler 5 | . 2 . . . 1 2 Recycler 10 | 1 1 . . 2 . 6 Watcher 5 | . 1 . . . 2 2 Swarmer 19 | . 6 6 . . 7 . Grunt 31 | . 8 2 . 2 4 15 Brawler 1 | . . . . 1 . . Sentry 10 | . . . . . 8 2 Hunter 5 | . . . . . . 5 Programmer 5 | . . . . . . 5 Best Kill Streak 10 | 2 3 3 . 4 5 10 Combat Bots Only 5 | . 3 3 . 3 5 4 Max Kills in Single Turn 3 | 1 1 3 . 1 1 3 Gunslinging . | . . . . . . . Exploded 3 | . . 3 . 1 . 2 Melee 1 | . . . . . . 1 Uniques/NPCs Destroyed . | . . . . . . . Combat | -11 -10 -10 -10 -9 -8 -7 -------- Run | Yrd Mat Min Exi Min Mat Fac Hostile Shots Fired 712 | . 82 31 . 10 163 426 Missed 188 | . 20 11 . 2 34 121 Hits 524 | . 62 20 . 8 129 305 Melee 1 | . . . . 1 . . Projectile 523 | . 62 20 . 7 129 305 Critical Strikes 12 | . . . . . 6 6 Actively Blocked 2 | . . . . . . 2 Part Disruptions 1 | . . . . . . 1 Damage Taken 6575 | . 725 237 . 100 1696 3817 Core 896 | . 113 31 . . 160 592 Absorbed by Shields 241 | . . . . . . 241 Redirected to Shielding 105 | . . . . . . 105 Regen/Repaired (Parts) 400 | . . . . . 54 346 Core Remaining (%) 70 | 100 . . . 42 70 . Volleys Fired 344 | 8 74 25 . 20 98 119 Largest 2 | 2 2 2 . 2 2 2 Hottest 77 | 40 40 50 . 50 46 77 Shots Fired 670 | 16 140 49 . 40 192 233 Gun 470 | 16 140 45 . 39 190 40 Cannon 193 | . . . . . . 193 Launcher 7 | . . 4 . 1 2 . Special . | . . . . . . . Kinetic 663 | 16 140 45 . 39 190 233 Thermal . | . . . . . . . Explosive 7 | . . 4 . 1 2 . Electromagnetic . | . . . . . . . Robot Hit Streak 24 | 4 8 6 . 11 24 15 Robot Miss Streak 13 | 2 3 6 . 2 3 13 Penetration Max . | . . . . . . . Secondary Targets 3 | . 2 . . . 1 . Max Gunslinging Chain 1 | . 1 . . . 1 . Shots Hit Robots 473 | 10 87 27 . 25 132 192 Core Hits 295 | 5 37 14 . 17 53 169 Critical Kills . | . . . . . . . Critical Parts Destroyed . | . . . . . . . Critical Strikes . | . . . . . . . Melee Attacks . | . . . . . . . Impact . | . . . . . . . Slashing . | . . . . . . . Piercing . | . . . . . . . Sneak Attacks . | . . . . . . . Combat Hostiles . | . . . . . . . Follow-up Attacks . | . . . . . . . Damage Inflicted 7405 | 112 1044 510 . 271 1761 3707 Guns 3679 | 112 1044 205 . 203 1761 354 Cannons 2531 | . . . . . . 2531 Explosions 1136 | . . 305 . 68 . 763 Melee . | . . . . . . . Ramming 59 | . . . . . . 59 Kinetic 6210 | 112 1044 205 . 203 1761 2885 Thermal 845 | . . 82 . . . 763 Explosive 291 | . . 223 . 68 . . Electromagnetic . | . . . . . . . Impact . | . . . . . . . Slashing . | . . . . . . . Piercing . | . . . . . . . Highest Corruption 3 | . . . . . . 3 Average Corruption 2 | . . . . . . 2 Corruption Purged . | . . . . . . . Corruption Blocked . | . . . . . . . Effects 11 | . . . . . . 11 Message Errors 2 | . . . . . . 2 Matter Fused 4 | . . . . . . 4 Heat Flow Errors 1 | . . . . . . 1 Energy Discharges 2 | . . . . . . 2 Data Loss (minor) 2 | . . . . . . 2 Overload Shots . | . . . . . . . Overflow Damage 105 | . . 33 . . . 72 Projectiles . | . . . . . . . Explosions 105 | . . 33 . . . 72 Melee . | . . . . . . . Knockbacks 71 | . . . . . . 71 Impact . | . . . . . . . Kinetic 67 | . . . . . . 67 Secondary 4 | . . . . . . 4 Self-Inflicted Damage 579 | . . . . . . 579 Shots 6 | . . . . . . 6 Rammed 16 | . . . . . . 16 Targets Rammed 17 | . . . . . . 17 Kicked . | . . . . . . . Crushed 1 | . . . . . . 1 Highest Temperature 409 | . 18 28 . 34 154 409 Average Temperature 50 | . 6 9 . 9 39 80 Received Heat Transfer 2106 | . 342 99 . 42 603 1020 Siege Activations . | . . . . . . . Martial Activations . | . . . . . . . Shielding Activations . | . . . . . . . Robots Disrupted . | . . . . . . . Combat Hostiles . | . . . . . . . Robots Corrupted . | . . . . . . . Combat Hostiles . | . . . . . . . Parts Fried . | . . . . . . . Impact Corruptions . | . . . . . . . Robots Melted . | . . . . . . . Combat Hostiles . | . . . . . . . Parts Melted 2 | . . . . . . 2 Heat Transferred 600 | . . 100 . . . 500 Parts Sabotaged . | . . . . . . . Parts Stolen . | . . . . . . . Parts Stripped . | . . . . . . . Power Chain Reactions . | . . . . . . . Alert | -11 -10 -10 -10 -9 -8 -7 ------- Run | Yrd Mat Min Exi Min Mat Fac Maximum Alert Level 1 | . . 1 . . . 1 Low Security (%) 98 | 100 100 99 . 100 100 95 Level 1 1 | . . . . . . 4 Level 2 . | . . . . . . . Level 3 . | . . . . . . . Level 4 . | . . . . . . . Level 5 . | . . . . . . . High Security . | . . . . . . . Max Security . | . . . . . . . Peak Influence 286 | 5 78 203 . 68 169 286 Initial 28 | . . 22 . . . 28 Average 65 | . 33 89 . 6 84 83 Influence Increases 2483 | 15 415 256 . 103 603 1091 Destroy 0b10 Robot/C 1420 | . 280 160 . 60 380 540 Destroy 0b10 Robot/NC 180 | 15 25 . . 20 35 85 Destroy Leader 370 | . 56 30 . 10 116 158 Successful Hack 74 | . 24 . . . 22 28 Disable Machine 195 | . . 15 . . . 180 Destroy Structure 154 | . . 36 . 13 20 85 Lose Combat Pursuer 90 | . 30 15 . . 30 15 Influence Decreases 2248 | 15 358 301 12 103 540 919 Entered New Map 82 | . . 35 12 . . 35 Time Decay 1687 | 15 318 246 . 93 460 555 Lost Part 329 | . 40 20 . 10 80 179 Purge Threat 150 | . . . . . . 150 Squads Dispatched 16 | . 2 . . . . 14 Investigation 7 | . 2 . . . . 5 Extermination 5 | . . . . . . 5 Reinforcement 2 | . . . . . . 2 Assault . | . . . . . . . Garrison 2 | . . . . . . 2 Intercept . | . . . . . . . Searches Triggered . | . . . . . . . Construction Impeded . | . . . . . . . Haulers Reinforced 1 | . . . . . . 1 Active Scanning Responses . | . . . . . . . Cargo Convoy Interrupts . | . . . . . . . Stealth | -11 -10 -10 -10 -9 -8 -7 --------- Run | Yrd Mat Min Exi Min Mat Fac Distress Signals 3 | . 1 1 . . . 1 Communications Jammed . | . . . . . . . Distress Signals . | . . . . . . . Times Spotted 106 | . 23 9 . 3 30 41 Peak Tracking Total 7 | . 5 3 . 3 7 6 Tactical Retreats 5 | . 2 1 . . 1 1 Traps | -11 -10 -10 -10 -9 -8 -7 ------- Run | Yrd Mat Min Exi Min Mat Fac Traps Triggered 2 | . 1 . . . . 1 Indirectly . | . . . . . . . Trap Hack Attempts . | . . . . . . . Triggered . | . . . . . . . Disarmed . | . . . . . . . Reprogrammed . | . . . . . . . Reused . | . . . . . . . Traps Extracted . | . . . . . . . Installed . | . . . . . . . Triggered . | . . . . . . . Machines | -11 -10 -10 -10 -9 -8 -7 ---------- Run | Yrd Mat Min Exi Min Mat Fac Machines Disabled 13 | . . 1 . . . 12 Max in Single Turn 5 | . . 1 . . . 5 Machines Repaired . | . . . . . . . Machines Dismantled . | . . . . . . . Machines Sabotaged . | . . . . . . . Overloaded Fab Kills . | . . . . . . . Hacking | -11 -10 -10 -10 -9 -8 -7 --------- Run | Yrd Mat Min Exi Min Mat Fac Machines Accessed 21 | . 6 . 1 . 6 8 Terminals 14 | . 5 . . . 5 4 Fabricators . | . . . . . . . Repair Stations 4 | . 1 . . . 1 2 Recycling Units 2 | . . . . . . 2 Scanalyzers . | . . . . . . . Garrison Access . | . . . . . . . Total Hacks 43 | . 11 . 1 . 11 20 Successful 23 | . 4 . 1 . 7 11 Failed 20 | . 7 . . . 4 9 Catastrophic 3 | . 2 . . . . 1 Database Lockouts . | . . . . . . . Manual 1 | . . . 1 . . . Terminals 24 | . 8 . . . 9 7 Fabricators . | . . . . . . . Repair Stations 12 | . 3 . . . 2 7 Recycling Units 6 | . . . . . . 6 Scanalyzers . | . . . . . . . Garrison Access . | . . . . . . . Terminal Hacks 13 | . 3 . 1 . 5 4 Branch Access Points 2 | . 1 . . . . 1 Alert Level 1 | . . . . . 1 . Unreport Threat 1 | . . . . . . 1 Locate Traps 1 | . . . . . . 1 Hauler Manifests 2 | . 1 . . . 1 . Registered Components 2 | . 1 . . . 1 . Zone Layout 3 | . . . . . 2 1 Proto ID Catalog 1 | . . . 1 . . . Fabricator Hacks . | . . . . . . . Repair Station Hacks 9 | . 1 . . . 2 6 Scan Component 6 | . 1 . . . 1 4 Repair 3 | . . . . . 1 2 Recycling Unit Hacks 1 | . . . . . . 1 Retrieve Components 1 | . . . . . . 1 Scanalyzer . | . . . . . . . Garrison Access Hacks . | . . . . . . . Unauthorized Hacks . | . . . . . . . Terminals . | . . . . . . . Fabricators . | . . . . . . . Repair Stations . | . . . . . . . Recycling Units . | . . . . . . . Scanalyzers . | . . . . . . . Garrison Access . | . . . . . . . Data Cores Recovered . | . . . . . . . Used . | . . . . . . . Hacking Detections 12 | . 5 . . . 1 6 Full Trace Events 5 | . 2 . . . . 3 Feedback Events . | . . . . . . . Feedback Blocked . | . . . . . . . Robot Schematics Acquired . | . . . . . . . Robots Built . | . . . . . . . Authchips . | . . . . . . . Time . | . . . . . . . Total Robot Build Rating . | . . . . . . . Part Schematics Acquired . | . . . . . . . Parts Built . | . . . . . . . Authchips . | . . . . . . . Time . | . . . . . . . Total Part Build Rating . | . . . . . . . Part Studies Acquired . | . . . . . . . Parts Repaired 3 | . . . . . 1 2 Time 90 | . . . . . 26 64 Parts Recycled . | . . . . . . . Recycled Matter . | . . . . . . . Retrieved Matter . | . . . . . . . Retrieved Components 10 | . . . . . . 10 Parts Scanalyzed . | . . . . . . . Part Schematics Acquired . | . . . . . . . Parts Damaged . | . . . . . . . Bothacking | -11 -10 -10 -10 -9 -8 -7 ------------ Run | Yrd Mat Min Exi Min Mat Fac Used RIF Installer . | . . . . . . . Robots Hacked . | . . . . . . . Non-combat . | . . . . . . . Combat . | . . . . . . . Robot Hacks Applied . | . . . . . . . Relay Couplers Released . | . . . . . . . Fabnet Peak Effective % . | . . . . . . . Robots Rewired . | . . . . . . . Allies Hacked . | . . . . . . . Hacks Repelled . | . . . . . . . Allies | -11 -10 -10 -10 -9 -8 -7 -------- Run | Yrd Mat Min Exi Min Mat Fac Total Allies 1 | . . . . 1 . . Largest Group 1 | . . . . 1 . . Highest-Rated Group 31 | . . . . 31 . . Highest-Rated Ally 31 | . . . . 31 . . Total Orders . | . . . . . . . Ally Attacks . | . . . . . . . Total Damage . | . . . . . . . Kills . | . . . . . . . Allies Corrupted . | . . . . . . . Allies Melted . | . . . . . . . Intel | -11 -10 -10 -10 -9 -8 -7 ------- Run | Yrd Mat Min Exi Min Mat Fac Active Infowar (turns) 3215 | 35 745 536 293 . . 1606 Sensors 1606 | . . . . . . 1606 Seismic 1609 | 35 745 536 293 . . . Robot Analysis Total . | . . . . . . . Derelict Logs Recovered 2 | . . . . 2 . . Drone Launches 2 | . . . . 1 . 1 Drone Recoveries 2 | . . . . 1 . 1 Exploration | -11 -10 -10 -10 -9 -8 -7 ------------- Run | Yrd Mat Min Exi Min Mat Fac Turns Passed 7178 | 126 890 536 293 961 1537 2835 Spaces Moved 3054 | 65 484 354 225 369 727 830 Core 28 | 23 2 . . . 1 2 Treads 1678 | 42 307 . . . 501 828 Legs . | . . . . . . . Wheels 482 | . . . . 257 225 . Hover 866 | . 175 354 225 112 . . Flight . | . . . . . . . Fastest Speed 50 | 50 56 56 116 110 95 170 Average Speed 172 | 138 122 112 129 218 147 240 Slowest Speed 1100 | 200 200 116 236 540 1100 900 Overloaded Moves . | . . . . . . . Propulsion Burnouts . | . . . . . . . Robots Hopped . | . . . . . . . Potential Cave-ins . | . . . . . . . Cave-ins Triggered . | . . . . . . . Exploration Rate (%) 51 | 4 70 65 59 82 54 26 Regions Visited 6 Branch Regions 3 Pre-discovered Areas . | . . . . . . . Known Exits Taken 1 | . 1 . . . . . Unknown Exits Taken 5 | 1 . 1 1 1 1 . Scrap Searched 4 | . . . . 4 . . Spaces Dug . | . . . . . . . Terrain Destroyed 161 | . . 41 . 14 18 88 Melee . | . . . . . . . Projectile . | . . . . . . . AOE 161 | . . 41 . 14 18 88 Terrain Rammed . | . . . . . . . Walls Destroyed . | . . . . . . . Machines Disabled . | . . . . . . . Actions | -11 -10 -10 -10 -9 -8 -7 --------- Run | Yrd Mat Min Exi Min Mat Fac Total 4325 | 84 652 453 226 489 1012 1409 Wait 725 | . 71 54 . 90 115 395 Move 3048 | 64 483 353 224 368 726 830 Hop . | . . . . . . . Pick Up 56 | 5 10 4 1 4 19 13 Fast Attach 27 | 7 3 1 . 2 9 5 Attach 23 | . 2 2 . . 9 10 Detach . | . . . . . . . Swap 37 | . 2 7 1 4 16 7 Drop 48 | . 7 7 . 1 20 13 Fire 344 | 8 74 25 . 20 98 119 Melee . | . . . . . . . Ram . | . . . . . . . Kick . | . . . . . . . Crush 17 | . . . . . . 17 Escape Stasis . | . . . . . . . Rewire . | . . . . . . . Trap . | . . . . . . . Miscellaneous . | . . . . . . . Route ------- -11/Scrapyard -10/Materials (discovered 3 exits: [*Mat x2] / *Min) -10/Mines -10/Exiles -9/Mines (discovered 2 exits: *Mat x2) -8/Materials -7/Factory (discovered 3 exits: Sto / Low x2) History --------- Turn | Location | Event 2 | -11/Scrapyard | Met Revision 17 8 | -11/Scrapyard | Discovered new exit (range 15) 127 | -11/Scrapyard | Entered Materials 263 | -10/Materials | Identified exit to Mines 318 | -10/Materials | Build established: Mutant 741 | -10/Materials | Discovered new exit (range 11) 978 | -10/Materials | Discovered new exit (range 3) 1017 | -10/Materials | Entered Mines 1018 | -10/Mines | Assembled infested the area 1077 | -10/Mines | Met 8R-AWN 1390 | -10/Mines | Core integrity fell below 50% 1466 | -10/Mines | Build established: Scavenger-Mutant 1546 | -10/Mines | Discovered new exit (range 5) 1553 | -10/Mines | Entered Exiles 1582 | -10/Exiles | Welcomed by 8R-AWN 1602 | -10/Exiles | Met EX-HEX 1634 | -10/Exiles | Met EX-BIN 1647 | -10/Exiles | Aligned with FarCom system 1649 | -10/Exiles | Given EX-Vault access code 1675 | -10/Exiles | Opened EX-Vault 1689 | -10/Exiles | Found Supersonic Drone Bay 1712 | -10/Exiles | Warned to stay clear of 0b10 Research branches 1745 | -10/Exiles | Met EX-DEC 1820 | -10/Exiles | Discovered new exit (range 14) 1846 | -10/Exiles | Left Exiles lab with Supersonic Drone Bay 1846 | -10/Exiles | Entered Mines 2196 | -9/Mines | Discovered new exit (range 6) 2299 | -9/Mines | Learned Materials emergency access door positions 2504 | -9/Mines | Received a Rocket Launcher from a helpful Derelict 2580 | -9/Mines | Learned Materials trap positions 2593 | -9/Mines | Found a damaged Exp. Sensor Array with a note attached 2596 | -9/Mines | Found Prototype Device 2628 | -9/Mines | Discovered new exit (range 12) 2705 | -9/Mines | Received a Mining Laser from a helpful Derelict 2807 | -9/Mines | Entered Materials 2807 | -8/Materials | Evolved 4 slots: Power x1, Propulsion x2, Utility x1 2808 | -8/Materials | Loaded intel: 22 trap records 2852 | -8/Materials | Repaired Ion Engine 3211 | -8/Materials | Lost 3 parts (2n1u) 3640 | -8/Materials | Discovered new exit (range 16) 3834 | -8/Materials | Lost 3 parts (1p2u) 4344 | -8/Materials | Entered Factory 4344 | -7/Factory | Evolved 2 slots: Utility x2 4345 | -7/Factory | Identified Exp. Sensor Array 4593 | -7/Factory | Identified exit to Storage 4593 | -7/Factory | Identified exit to Lower Caves 4633 | -7/Factory | Build established: Scavenger-Skirmisher 5069 | -7/Factory | Build established: Skirmisher 5169 | -7/Factory | Repaired Arm. Treads 5197 | -7/Factory | Repaired Lgt. Armor Plating 5519 | -7/Factory | Noticed a derelict Sapper rigging charges 6253 | -7/Factory | Build established: Mutant 6994 | -7/Factory | Garrison activated, responded to threat 7059 | -7/Factory | Lost 3 parts (1p1u1w) 7116 | -7/Factory | Lost 3 parts (1n2u) 7172 | -7/Factory | Core integrity fell below 50% 7179 | -7/Factory | Core integrity fell below 20% 7179 | -7/Factory | Self-destructed Last Messages --------------- 07150_ Lgt. Treads destroyed. 07150_ R-06 Scavenger collects Aluminum Leg. 07150_ K-01 Serf collects debris. 07153_ R-06 Scavenger collects Particle Gun. 07154_ K-01 Serf collects debris. 07156_ Slug penetrates Wall. 07156_ Slammed into Y-54 Guardian. 07157_ R-06 Scavenger collects Imp. Heat Sink. 07159_ Hrd. Medium Armor Plating destroyed. 07162_ Penetrated by Slug. 07162_ Arm. Treads destroyed. 07168_ Slug penetrates Wall. 07169_ Flak Cannon destroyed. 07171_ Penetrated by Slug. 07171_ Acquired 37 matter. 07174_ Penetrated by Slug. 07174_ Adv. Assault Cannon destroyed. 07176_ K-01 Serf collects debris. 07176_ M-13 Machinist repairs G-47 Trooper. 07177_ Penetrated by Slug. Map ----- +----------------------------------------------------+ | ??###+##+## # # " +=""""=#?? #????##### | | ????# + # ###### = #?? #????# | | ????### # ## ##########+##### #????#""" | | ??????# # ## #????#""" | | ####### # ## #????#""" | | ####### #????# | | ^ #????# | | # #########+ | | # || !!= | | # || !==^ | | # | != #########/### | | # #?# # | | """" """" #?# ^ "Y" # | | ####### """" """" + * """ + | | =[# ^ """" """" ###+#### # | | ! + ^ # ################ | | """!## """" """" # #????# !! # | | """ ## """" """" # """#????# !! """ # | | """ ## """" """" # """#????# """ # | | ## =% # """#????# """ + | | ####+### """" """"! # ###### # | | ?? ^ ^ """" """"%= # + / # | | ? """" """"!mg####+## #### ###+ | | ? == /g#### #??# # | | ? = ! kk %h #??########### | | ? !* w %Y@ % #????????????# | | ###????# k ######### #????????????# | | ???????? #######???# + #????????????# | | ???????? #?????????#!! # %#?????????####### | | ???????? ??????????#!! # #?????????# | | ???????? ????????????#! =# #?????????# | | ???????????????????????# # #?????????#= ! " | | ???????????????????????###### #?????????# " | | ????????????????????????????# ?????????# "" " | | ???????????????????????????? ????????# ""!=" | | ????????????????????????????#### ???????# ""!=" | | ????????????????????????????????##/##??????# "Y!=" | | ?????????????????????????????????? ???????# ""!!" | | ??????????????????????????????????? #??????# ""==" | | ????????????????????????????? #??????# "" " | | ??????????????????????????????#??????# | | ?????????????????????????????????????####### | | ?????????????????????????????????????????????? | | ??? ????????????????????????????????????????????? | | ?????????????????????????????????????????????????? | | ?????????????????????????????????????????????????? | | ?????????????????????????????????????????????????? | | ?????????????????????????????????????????????????? | | ?????????????????????????????????????????????????? | | ?????????????????????????????????????????????????? | +----------------------------------------------------+ Best States ------------- Heat Dissipation 48 Energy Generation 23 Energy Capacity 455 Matter Stores 300 Matter Capacity 300 Sight Range 16 Robot Scan Range 20 Terrain Scan Density 10 Armor Coverage 450 Weapon Shielding 33 Evasion (%) 53 Recoil Reduction 4 Item Schematics ----------------- None Robot Schematics ------------------ None Fabricated ------------ Nothing Repaired ---------- Ion Engine | 10% | -8/Materials Arm. Treads | 10% | -7/Factory Lgt. Armor Plating | 15% | -7/Factory Studied --------- None Alien Tech Used ----------------- None Achievements -------------- None Challenges ------------ None Game ------ Seed ZipSpacefoldSpecial Manual? 0 Play Time 00:36:58 Cumulative 49.7 hours Start 2026.06.23 @ 14:29:29 End 2026.06.23 @ 15:12:31 Sessions 1 Manual Loads 0 Difficulty Rogue Special Mode None Game No. 102 Rogue 102 Adventurer 0 Explorer 0 Win Type - Total 0 Types 0/0/0/0/0/0/0/0/0/0 Lore% 26 Gallery% 24 Achievement% 22 Wizard Run 0 Options --------- Layout 0 ASCII 0 Keyboard 0 Movement Mouse Keybinds 0 Fullscreen 2 Font 24/Smallcaps Map View 76x50 Zoom Use 0% Tactical HUD 1 Map Filters NONE Filters NONE Steam 1 RUN: 0d7ea5f9-ba9e-49cd-a097-5c169642c58b